Cogmind - Beta 11.1 @@@ ROGUE MODE // 2022.05.21 @ 00:58:34 Player: Jezoensis Result: Escaped! Performance ------------- Evolutions (9) 4500 Regions Visited (22) 4400 Robots Destroyed (180) 900 Value Destroyed (9234) 9234 Prototype IDs (66) 1320 Alien Tech Used (0) 0 Bonus (9873) 9873 TOTAL SCORE: 30227 Bonus ------- High Alert Combat Kills 1188 Follower Combat Kills 1499 Entered DSFs 500 Network Hubs Disabled 200 Aligned with FarCom 300 Met Warlord at Base 500 MAIN.C Attacked Warlord 500 Met R17 at Cetus 500 Met Warlord at Research 2000 Win 3000 Friendly Fire -314 Cogmind --------- Core Integrity 810/1600 Matter 156/300 Energy 27/100 System Corruption 11% Temperature Cool (0) Movement Core (50) Location To Epsilon Eridani Parts ------- > --- POWER (2) -------- (None) > --- PROPULSION (4) --- (None) > --- UTILITY (14) ----- Experimental Targeting Computer Experimental Core Analyzer Improved Armor Integrity Analyzer > --- WEAPON (5) ------- (None) > --- INVENTORY (5) ---- Advanced Terrain Scanner Improved Weapon Cycler Advanced Transmission Jammer Improved Utility Shielding Advanced Force Field Peak State ------------ > --- POWER ------------ Quantum Reactor Quantum Reactor > --- PROPULSION ------- Biometal Heavy Treads Biometal Heavy Treads > --- UTILITY ---------- Advanced Cooling System High-capacity Storage Unit Advanced Energy Well Experimental Matter Compressor Spectral Analyzer Advanced Terrain Scan Processor Advanced Target Analyzer Core Analyzer Advanced Weapon Cycler Advanced Transmission Jammer Advanced Focal Shield Advanced Shield Generator Advanced Force Field Improved System Guard > --- WEAPON ----------- KE Penetrator KE Penetrator Railgun Railgun Multirail > --- INVENTORY -------- Experimental Biometal Heavy Treads Advanced Heat Sink Improved Matter Compressor Advanced Terrain Scanner Improved Weapon Cycler Advanced Transmission Jammer Advanced Force Field Antimissile System High-powered Tractor Beam Neutron Cannon Heavy Machine Gun KE Penetrator Railgun Railgun Railgun Hellfire Missile Launcher [Rating: 195] Favorites ----------- Power Quantum Reactor Engine Heavy Deuterium Engine Power Core Fission Core Reactor Quantum Reactor Propulsion Light Treads Treads Light Treads Wheel Wheel Utility High-capacity Storage Unit Device Advanced Terrain Scanner Storage High-capacity Storage Unit Processor Advanced Terrain Scan Processor Hackware Improved Hacking Suite Protection Improved Weapon Shielding Weapon KE Penetrator Energy Gun Improved Medium Laser Energy Cannon Neutron Cannon Ballistic Gun KE Penetrator Ballistic Cannon Light Cannon Launcher Hellfire Missile Launcher Special Weapon Mining Laser Slashing Weapon Scythe Build | -11 -10 -10 -10 -9 -8 -7 -7 -6 -5 -5 -5 -5 -4 -4 -4 -4 -4 -4 -3 -2 -1 -1 ------- Run | Scr Mat Min Exi Min Mat Fac DSF Fac Fac Upp Upp War Pro Fac Ext Cet Arc Hub Res Res Acc Com Slots Evolved 18 | . . . . . 4 2 . 2 2 . . . . 2 . . . . 2 2 2 . Power 1 | . . . . . . . . . 1 . . . . . . . . . . . . . Propulsion 2 | . . . . . 1 . . 1 . . . . . . . . . . . . . . Utility 12 | . . . . . 2 1 . 1 1 . . . . 1 . . . . 2 2 2 . Weapon 3 | . . . . . 1 1 . . . . . . . 1 . . . . . . . . Parts Attached 422 | 8 35 . 5 . 23 3 18 20 15 2 1 17 1 9 56 6 3 46 29 31 36 58 Power 16 | 1 . . 1 . 1 . 1 2 1 . . . . . 1 2 . . 1 3 1 1 Engine 4 | 1 . . 1 . 1 . . 1 . . . . . . . . . . . . . . Core 3 | . . . . . . . 1 1 1 . . . . . . . . . . . . . Reactor 9 | . . . . . . . . . . . . . . . 1 2 . . 1 3 1 1 Propulsion 47 | 2 9 . 2 . 3 . 5 3 . . . 6 . 1 1 2 . 1 . 6 2 4 Treads 40 | . 4 . 2 . 3 . 5 3 . . . 6 . 1 1 2 . 1 . 6 2 4 Leg . | . . . . . . . . . . . . . . . . . . . . . . . Wheel 7 | 2 5 . . . . . . . . . . . . . . . . . . . . . Hover . | . . . . . . . . . . . . . . . . . . . . . . . Flight . | . . . . . . . . . . . . . . . . . . . . . . . Utility 233 | 2 13 . . . 14 2 6 8 11 2 . 6 1 7 45 . 3 28 15 15 21 34 Device 173 | 1 9 . . . 10 . 4 5 6 1 . 3 1 5 45 . 2 27 10 9 15 20 Storage 19 | 1 3 . . . . . . . 1 . . 1 . . . . . 1 4 2 1 5 Processor 26 | . . . . . 3 2 1 1 2 1 . 1 . 1 . . . . . 3 4 7 Hackware 8 | . . . . . 1 . . 2 2 . . . . 1 . . 1 . 1 . . . Protection 7 | . 1 . . . . . 1 . . . . 1 . . . . . . . 1 1 2 Artifact . | . . . . . . . . . . . . . . . . . . . . . . . Weapon 126 | 3 13 . 2 . 5 1 6 7 3 . 1 5 . 1 9 2 . 17 13 7 12 19 Energy Gun 17 | 1 7 . 2 . 2 . 1 . . . . 1 . . . . . 2 1 . . . Energy Cannon 19 | . . . . . . . . 2 . . . 2 . . 2 . . 3 3 2 4 1 Ballistic Gun 77 | 2 3 . . . 3 . 5 4 3 . 1 2 . 1 7 2 . 10 6 4 8 16 Ballistic Cannon 2 | . 1 . . . . . . . . . . . . . . . . . . 1 . . Launcher 7 | . . . . . . . . . . . . . . . . . . 2 3 . . 2 Special Weapon 2 | . 2 . . . . . . . . . . . . . . . . . . . . . Impact Weapon . | . . . . . . . . . . . . . . . . . . . . . . . Slashing Weapon 2 | . . . . . . 1 . 1 . . . . . . . . . . . . . . Piercing Weapon . | . . . . . . . . . . . . . . . . . . . . . . . Special Melee Weapon . | . . . . . . . . . . . . . . . . . . . . . . . Unidentified Prototypes 29 | . 1 . . . 1 . . 3 1 . . 3 . 1 . 2 . 3 3 3 . 8 Parts Lost 34 | . 2 . . . . 2 1 . . . . . . . . . . 1 1 . 1 26 Power 3 | . . . . . . . . . . . . . . . . . . . . . . 3 Propulsion 3 | . 1 . . . . . . . . . . . . . . . . . . . . 2 Utility 15 | . . . . . . 2 . . . . . . . . . . . 1 . . 1 11 Weapon 13 | . 1 . . . . . 1 . . . . . . . . . . . 1 . . 10 Highest Loss Streak 15 | . 2 . . . . 2 1 . . . . . . . . . . 1 1 . 1 15 To Critical Strikes . | . . . . . . . . . . . . . . . . . . . . . . . Average Slot Usage (%) 91 | . 99 100 100 100 99 93 98 99 99 100 99 99 94 73 72 73 73 75 89 90 91 87 Engine 4 | . 14 14 14 14 9 7 6 5 5 5 5 5 5 5 5 3 . . . . . . Core 1 | . . . . . . . . . 5 5 5 5 5 5 4 . . . . . . . Reactor 3 | . . . . . . . . . . . . . . . . 6 10 10 9 8 8 7 Treads 14 | . 8 . 17 28 27 23 22 26 23 23 23 22 17 10 10 10 10 10 9 8 8 7 Wheel 1 | . 19 28 10 . . . . . . . . . . . . . . . . . . . Device 13 | . 13 14 14 14 8 2 5 6 9 11 11 10 11 14 15 15 15 15 18 20 16 18 Storage 7 | . 14 14 14 14 9 7 7 6 5 5 5 5 5 5 5 5 5 5 8 8 10 9 Processor 17 | . . . . . 17 21 23 20 19 23 23 23 23 18 15 15 15 15 14 17 22 23 Hackware 2 | . . . . . 1 . . 5 4 . . . . 2 5 5 5 5 4 4 4 1 Energy Gun 2 | . 14 14 14 14 9 . 4 . . . . . . . . . . . . . . . Energy Cannon 1 | . . . . . . . . 4 3 . . . 5 5 . . . 1 3 3 2 . Ballistic Gun 16 | . 12 14 14 14 17 23 24 20 18 23 22 22 17 4 9 10 10 11 19 17 17 18 Naked Turns 1 | . . . . . . . . . . . . . . . . . . . . . . 1 Heaviest Build 160 | 14 52 51 51 49 57 59 69 71 81 82 84 94 90 94 96 110 109 151 160 122 125 141 Greatest Support 160 | 20 26 20 40 40 60 60 60 90 90 90 90 128 128 140 140 150 150 160 160 155 155 160 Greatest Overweight (x) 5 | . 5 2 2 1 . . 1 . . . . . . . . . . 1 . . . . Average Overweight (x) . | . 2 2 1 1 . . . . . . . . . . . . . . . . . . Largest Inventory Capacity 25 | 8 20 20 20 20 20 20 20 20 20 20 20 20 20 20 20 20 20 25 25 25 20 20 Average Capacity 20 | 7 16 20 20 20 20 20 20 20 20 20 20 20 20 20 20 20 20 22 25 20 20 19 Most Carried 25 | 6 20 20 20 20 20 19 20 20 20 20 20 20 20 20 20 20 20 25 25 24 20 20 Average Carried 19 | 4 14 19 19 20 19 18 19 19 19 20 19 19 20 19 19 19 19 21 24 19 19 18 Final Capacity 25 | 8 20 20 20 20 20 20 20 20 20 20 20 20 20 20 20 20 20 25 25 20 20 5 Final Carried 25 | 6 20 20 20 20 19 19 20 20 20 20 20 20 20 20 20 20 20 25 25 20 20 5 Class Distribution -------------------- 33% | Skirmisher 27% | Mutant 11% | Scavenger-Skirmisher 10% | Scavenger-Mutant 8% | Scavenger-Gunner Dominant Class ---------------- Mutant | -10/Materials Mutant | -10/Mines Mutant | -10/Exiles Skirmisher | -9/Mines Skirmisher | -8/Materials Mutant | -7/Factory Skirmisher | -7/DSF Mutant | -6/Factory Mutant | -5/Factory Skirmisher | -5/Upper Caves Skirmisher | -5/Upper Caves Skirmisher | -5/Warlord Mutant | -4/Proximity Caves Mutant | -4/Factory Skirmisher | -4/Extension Commander-Skirmisher | -4/Cetus Scavenger-Skirmisher | -4/Archives Scavenger-Skirmisher | -4/Hub_04(d) Scavenger-Mutant | -3/Research Mutant | -2/Research Scavenger-Mutant | -1/Access Scavenger-Gunner | -1/Command Resources | -11 -10 -10 -10 -9 -8 -7 -7 -6 -5 -5 -5 -5 -4 -4 -4 -4 -4 -4 -3 -2 -1 -1 ----------- Run | Scr Mat Min Exi Min Mat Fac DSF Fac Fac Upp Upp War Pro Fac Ext Cet Arc Hub Res Res Acc Com Matter Collected 10806 | 313 490 19 233 . 292 12 429 362 251 28 142 338 10 90 1478 205 119 1321 525 741 975 2433 Remotely 4423 | . . . . . . . 103 157 . . . 232 . 90 725 . . 1000 259 123 741 993 Salvage Created 10121 | 148 514 . . . 417 38 429 413 110 . . . . 125 1377 120 345 1180 446 370 1449 2640 Parts 511 | 16 26 . . . 26 6 20 21 6 . . . . 9 66 7 21 70 3 23 76 115 Haulers Intercepted 7 | . 2 . . . 2 . . 1 . . . . . . . . . 2 . . . . Recyclers Shooed 10 | . 1 . . . 2 . . 4 . . . . . . 1 . . . . . 1 1 Parts Field Recycled . | . . . . . . . . . . . . . . . . . . . . . . . Retrieved Matter . | . . . . . . . . . . . . . . . . . . . . . . . Parts Self-Destructed . | . . . . . . . . . . . . . . . . . . . . . . . Prevented . | . . . . . . . . . . . . . . . . . . . . . . . Kills | -11 -10 -10 -10 -9 -8 -7 -7 -6 -5 -5 -5 -5 -4 -4 -4 -4 -4 -4 -3 -2 -1 -1 ------- Run | Scr Mat Min Exi Min Mat Fac DSF Fac Fac Upp Upp War Pro Fac Ext Cet Arc Hub Res Res Acc Com Combat Hostiles Destroyed 112 | . 7 . . . 5 . 8 . 2 . . . . . 15 2 2 15 4 2 20 30 Guns 106 | . 5 . . . 4 . 8 . 2 . . . . . 15 2 2 13 4 2 20 29 Cannons 2 | . 2 . . . . . . . . . . . . . . . . . . . . . AOE 3 | . . . . . . . . . . . . . . . . . . 2 . . . 1 Classes Destroyed 22 | 2 5 . . . 2 . 2 . 1 . . . . 1 2 . . 1 1 1 1 3 Worker 18 | . 1 . . . 1 . . 3 . . . . . . 1 . . 4 . 1 1 6 Builder 11 | . 4 . . . . 2 . 3 . . . . . . 1 . . 1 . . . . Tunneler 7 | 4 1 . . . . . . . . . . . . . . . . 1 . . 1 . Hauler 7 | . 2 . . . 2 . . 1 . . . . . . . . . 2 . . . . Recycler 8 | 1 . . . . . . . 2 . . . . . 1 . . . . 1 1 1 1 Mechanic 2 | . . . . . . . . . . . . . . . . . . . . 2 . . Operator 6 | . . . . . . . . . . . . . . 1 1 . 4 . . . . . Watcher 9 | . 1 . . . 1 . . . . . . . . . 2 . . 2 . . . 3 Swarmer 12 | . . . . . . . . . . . . . . . . . . . . . 7 5 Grunt 33 | . 7 . . . 1 . 6 . . . . . . . 5 . . 3 2 1 . 8 Brawler 2 | . . . . . . . . . . . . . . . . . . . 2 . . . Duelist 1 | . . . . . 1 . . . . . . . . . . . . . . . . . Protector 1 | . . . . . . . . . . . . . . . . . . 1 . . . . Sentry 16 | . . . . . 3 . . . . . . . . . 6 . 2 2 . . 2 1 Specialist 1 | . . . . . . . 1 . . . . . . . . . . . . . . . Hunter 11 | . . . . . . . . . . . . . . . 2 . . 2 . . 5 2 Programmer 16 | . . . . . . . . . 2 . . . . . . . . 3 . 1 6 4 Heavy 1 | . . . . . . . 1 . . . . . . . . . . . . . . . Behemoth 6 | . . . . . . . . . . . . . . . 2 . . 1 . . . 3 Cetus Guard 2 | . . . . . . . . . . . . . . . . 2 . . . . . . Lightning 3 | . . . . . . . . . . . . . . . . . . 3 . . . . Striker 2 | . . . . . . . . . . . . . . . . . . . . . . 2 Executioner 3 | . . . . . . . . . . . . . . . . . . . . . . 3 Alpha 7 2 | . . . . . . . . . . . . . . . . . . . . . . 2 Best Kill Streak 13 | 5 4 . . . 3 1 3 4 2 . . . . 1 4 2 4 7 5 2 8 13 Combat Bots Only 10 | . 2 . . . 2 . 3 . 2 . . . . . 4 2 2 3 4 1 7 10 Max Kills in Single Turn 4 | 1 1 . . . 1 1 2 4 1 . . . . 1 2 1 1 2 2 2 4 2 Gunslinging 3 | . . . . . . . 1 . . . . . . . . . . . 1 . 3 1 Exploded 1 | . . . . . . . . . . . . . . . . . . 1 . . . 1 Melee . | . . . . . . . . . . . . . . . . . . . . . . . Uniques/NPCs Destroyed . | . . . . . . . . . . . . . . . . . . . . . . . Combat | -11 -10 -10 -10 -9 -8 -7 -7 -6 -5 -5 -5 -5 -4 -4 -4 -4 -4 -4 -3 -2 -1 -1 -------- Run | Scr Mat Min Exi Min Mat Fac DSF Fac Fac Upp Upp War Pro Fac Ext Cet Arc Hub Res Res Acc Com Damage Taken 11585 | . 516 . . . 169 247 775 . 100 . . . . 50 548 26 13 1365 107 44 1318 6307 Core 1233 | . 49 . . . 14 117 79 . 38 . . . . 9 20 . . 96 21 . 123 667 Absorbed by Shields 3641 | . . . . . . . . . . . . . . 54 451 28 13 728 111 45 254 1957 Reduced by Siege Mode 962 | . . . . . . . . . . . . . . . 56 . . 157 12 7 126 604 Redirected to Shielding 146 | . . . . . . . . . . . . . . . . . . . . . 101 45 Core Remaining (%) 88 | 100 . . . 80 97 . 72 100 . . . . 96 . . . . 89 98 100 . 50 Volleys Fired 459 | 11 58 . . . 19 . 20 27 5 . . 3 . 5 57 7 10 57 16 21 40 103 Largest 5 | 2 2 . . . 3 . 4 4 4 . . 3 . 1 2 2 2 5 5 5 5 5 Hottest 209 | 60 112 . . . 132 . 125 161 99 . . 148 . 90 93 93 93 150 141 139 209 196 Shots Fired 1325 | 22 111 . . . 56 1 80 59 17 . . 7 . 5 98 13 20 122 36 49 163 466 Gun 1233 | 22 95 . . . 56 1 80 43 16 . . 4 . 2 95 13 20 116 25 36 152 457 Cannon 79 | . 11 . . . . . . 16 1 . . 3 . 3 3 . . 6 11 13 11 1 Launcher 8 | . . . . . . . . . . . . . . . . . . . . . . 8 Special 5 | . 5 . . . . . . . . . . . . . . . . . . . . . Kinetic 1107 | 11 47 . . . 28 1 63 43 16 . . 4 . 2 95 13 20 94 25 36 152 457 Thermal 188 | 11 64 . . . 28 . 17 16 1 . . 3 . 3 3 . . 6 11 13 11 1 Explosive 8 | . . . . . . . . . . . . . . . . . . . . . . 8 Electromagnetic . | . . . . . . . . . . . . . . . . . . . . . . . Entropic 22 | . . . . . . . . . . . . . . . . . . 22 . . . . Robot Hit Streak 41 | 5 14 . . . 13 . 17 9 22 . . . . 5 32 14 12 25 25 29 18 41 Robot Miss Streak 4 | 2 3 . . . 1 . 2 2 . . . . . 1 4 4 2 4 . 1 3 4 Penetration Max 1 | . . . . . . . . . . . . . . . . 1 . 1 1 1 1 1 Secondary Targets 35 | . . . . . 2 . 3 . . . . . . . 1 1 . 2 2 . 10 14 Max Gunslinging Chain 3 | . . . . . 1 . 1 . . . . . . . 1 1 . 1 1 . 3 1 Shots Hit Robots 943 | 13 75 . . . 44 2 61 33 13 . . . . 2 76 10 14 85 19 25 107 364 Core Hits 505 | 6 23 . . . 16 1 22 16 4 . . . . 3 59 10 17 66 15 13 61 173 Critical Kills 10 | . . . . . . . . 1 . . . . . . . . . . 1 . 5 3 Critical Parts Destroyed 41 | . . . . . . . . . . . . . . . 1 . . 5 1 . 7 27 Critical Strikes 72 | . 5 . . . 5 . . 1 . . . . . . 1 . 1 5 4 . 12 38 Burn 10 | . 5 . . . 5 . . . . . . . . . . . . . . . . . Destroy 59 | . . . . . . . . 1 . . . . . . 1 . 1 2 4 . 12 38 Detonate 3 | . . . . . . . . . . . . . . . . . . 3 . . . . Melee Attacks 11 | . . . . . . 9 . 2 . . . . . . . . . . . . . . Impact . | . . . . . . . . . . . . . . . . . . . . . . . Slashing 11 | . . . . . . 9 . 2 . . . . . . . . . . . . . . Piercing . | . . . . . . . . . . . . . . . . . . . . . . . Sneak Attacks 2 | . . . . . . 2 . . . . . . . . . . . . . . . . Combat Hostiles . | . . . . . . . . . . . . . . . . . . . . . . . Follow-up Attacks . | . . . . . . . . . . . . . . . . . . . . . . . Damage Inflicted 30500 | 155 1257 . . . 708 127 984 1116 322 . . . . 138 4025 666 841 5127 855 665 2801 10713 Guns 27817 | 155 1088 . . . 693 . 984 552 322 . . . . 124 3955 666 841 4407 709 649 2689 9983 Cannons 242 | . 169 . . . . . . 33 . . . . . . . . . . . . 40 . Explosions 1861 | . . . . . . . . 461 . . . . . . . . . 670 . . . 730 Melee 127 | . . . . . . 127 . . . . . . . . . . . . . . . . Ramming 453 | . . . . . 15 . . 70 . . . . . 14 70 . . 50 146 16 72 . Kinetic 25659 | 50 476 . . . 313 . 780 552 322 . . . . 124 3955 666 841 3550 709 649 2689 9983 Thermal 2653 | 105 781 . . . 380 . 204 494 . . . . . . . . . 649 . . 40 . Explosive 730 | . . . . . . . . . . . . . . . . . . . . . . 730 Electromagnetic 21 | . . . . . . . . . . . . . . . . . . 21 . . . . Impact . | . . . . . . . . . . . . . . . . . . . . . . . Slashing 127 | . . . . . . 127 . . . . . . . . . . . . . . . . Piercing . | . . . . . . . . . . . . . . . . . . . . . . . Entropic 857 | . . . . . . . . . . . . . . . . . . 857 . . . . Highest Corruption 11 | . . . . . . 6 6 1 . . . . . . . . . 11 5 . 3 11 Average Corruption 4 | . . . . . . 6 6 1 . . . . . . . . . 5 5 . 1 11 Corruption Purged . | . . . . . . . . . . . . . . . . . . . . . . . Corruption Blocked 20 | . . . . . . . . . . . . . . . . . . . . 20 . . Effects 49 | . . . . . . 7 8 1 . . . . . . . . . 11 10 . 3 9 Message Errors 14 | . . . . . . 4 1 1 . . . . . . . . . 2 3 . . 3 Matter Fused 11 | . . . . . . 1 3 . . . . . . . . . . 1 4 . 2 . Heat Flow Errors 4 | . . . . . . . 1 . . . . . . . . . . . . . 1 2 Energy Discharges 4 | . . . . . . 1 1 . . . . . . . . . . 2 . . . . Parts Rejected 3 | . . . . . . . . . . . . . . . . . . . 2 . . 1 Data Loss (minor) 4 | . . . . . . . 1 . . . . . . . . . . 2 1 . . . Data Loss (major) 3 | . . . . . . . 1 . . . . . . . . . . 1 . . . 1 Misfires 1 | . . . . . . 1 . . . . . . . . . . . . . . . . Alerts 1 | . . . . . . . . . . . . . . . . . . 1 . . . . Weapon Failures 4 | . . . . . . . . . . . . . . . . . . 2 . . . 2 Overload Shots . | . . . . . . . . . . . . . . . . . . . . . . . Overflow Damage 264 | . . . . . . 24 . 138 . . . . . . 20 . . 44 38 . . . Projectiles 3 | . . . . . . . . 3 . . . . . . . . . . . . . . Explosions 179 | . . . . . . . . 135 . . . . . . . . . 44 . . . . Melee 82 | . . . . . . 24 . . . . . . . . 20 . . . 38 . . . Knockbacks 6 | . . . . . 1 . . 1 . . . . . . 1 . . 1 2 . . . Impact 6 | . . . . . 1 . . 1 . . . . . . 1 . . 1 2 . . . Kinetic . | . . . . . . . . . . . . . . . . . . . . . . . Secondary . | . . . . . . . . . . . . . . . . . . . . . . . Self-Inflicted Damage 89 | . . . . . . . . . . . . . . . . . . 89 . . . . Shots 1 | . . . . . . . . . . . . . . . . . . 1 . . . . Rammed 26 | . . . . . 2 . . 4 . . . . . 1 2 . . 4 7 . 6 . Targets Rammed 30 | . . . . . 2 . . 6 . . . . . 1 2 . . 5 7 1 6 . Kicked . | . . . . . . . . . . . . . . . . . . . . . . . Crushed 4 | . . . . . . . . 2 . . . . . . . . . 1 . 1 . . Highest Temperature 343 | 20 78 . . . 93 . 83 94 185 . . 159 . 34 332 49 60 198 343 138 217 265 Average Temperature 49 | 20 28 . . . 32 . 35 28 82 . . 82 . 20 79 24 33 55 84 31 37 56 Received Heat Transfer 866 | . 318 . . . 45 . 225 . . . . . . . 53 . . 58 17 21 27 102 Siege Activations 29 | . . . . . . . . . . . . . . . 7 . . 5 1 1 5 10 Total Turns 437 | . . . . . . . . . . . . . . . 69 . . 80 16 3 49 220 Longest Duration 79 | . . . . . . . . . . . . . . . 19 . . 46 16 3 23 79 Robots Corrupted . | . . . . . . . . . . . . . . . . . . . . . . . Combat Hostiles . | . . . . . . . . . . . . . . . . . . . . . . . Parts Fried 4 | . . . . . . . . . . . . . . . 4 . . . . . . . Impact Corruptions 4 | . . . . . . . . 1 . . . . . . 2 . . . 1 . . . Robots Melted 1 | . . . . . 1 . . . . . . . . . . . . . . . . . Combat Hostiles 1 | . . . . . 1 . . . . . . . . . . . . . . . . . Parts Melted 10 | . 5 . . . 4 . . 1 . . . . . . . . . . . . . . Heat Transferred 4639 | 225 2110 . . . 1184 . 444 350 . . . . . . . . . 326 . . . . Parts Sabotaged 4 | . . . . . . . . . . . . . . . . . . . 4 . . . Parts Stolen . | . . . . . . . . . . . . . . . . . . . . . . . Parts Stripped . | . . . . . . . . . . . . . . . . . . . . . . . Power Chain Reactions . | . . . . . . . . . . . . . . . . . . . . . . . Missiles Intercepted . | . . . . . . . . . . . . . . . . . . . . . . . Alert | -11 -10 -10 -10 -9 -8 -7 -7 -6 -5 -5 -5 -5 -4 -4 -4 -4 -4 -4 -3 -2 -1 -1 ------- Run | Scr Mat Min Exi Min Mat Fac DSF Fac Fac Upp Upp War Pro Fac Ext Cet Arc Hub Res Res Acc Com Peak Influence 1121 | 25 213 46 . . 176 26 180 273 135 . . . . 11 378 828 524 1121 656 406 368 772 Initial 517 | . 16 46 . . . 13 10 94 133 . . . . . 2 148 331 183 517 308 . 235 Average 253 | 8 97 46 . . 55 9 93 117 74 . . . . 3 169 589 471 723 544 223 174 473 Maximum Alert Level 4 | . 1 . . . . . . 1 . . . . . . 1 3 2 4 2 2 1 3 Low Security (%) 53 | 100 93 100 . 100 100 100 100 77 100 . . . . 100 54 13 . 7 . 33 63 . Level 1 22 | . 6 . . . . . . 22 . . . . . . 45 16 9 5 . 56 36 33 Level 2 18 | . . . . . . . . . . . . . . . . 29 90 34 100 9 . 62 Level 3 5 | . . . . . . . . . . . . . . . . 41 . 50 . . . 4 Level 4 . | . . . . . . . . . . . . . . . . . . 1 . . . . Level 5 . | . . . . . . . . . . . . . . . . . . . . . . . High Security . | . . . . . . . . . . . . . . . . . . . . . . . Max Security . | . . . . . . . . . . . . . . . . . . . . . . . Sterilizations 1 | . . . . . . . 1 . . . . . . . . . . . . . . . Squads Dispatched 28 | . 2 . . . . . 1 6 1 . . . . 2 1 . . 4 2 . 6 3 Investigation 3 | . 1 . . . . . . 1 . . . . . . . . . . . . . 1 Extermination 8 | . . . . . . . . 1 1 . . . . 1 . . . 1 1 . 2 1 Reinforcement 12 | . 1 . . . . . 1 3 . . . . . 1 1 . . 3 . . 1 1 Assault 1 | . . . . . . . . . . . . . . . . . . . 1 . . . Garrison 4 | . . . . . . . . 1 . . . . . . . . . . . . 3 . Intercept . | . . . . . . . . . . . . . . . . . . . . . . . Searches Triggered . | . . . . . . . . . . . . . . . . . . . . . . . Construction Impeded 1 | . . . . . . . . 1 . . . . . . . . . . . . . . Haulers Reinforced 3 | . . . . . . . . 1 . . . . . . . . . 2 . . . . Active Scanning Responses . | . . . . . . . . . . . . . . . . . . . . . . . Cargo Convoy Interrupts . | . . . . . . . . . . . . . . . . . . . . . . . Stealth | -11 -10 -10 -10 -9 -8 -7 -7 -6 -5 -5 -5 -5 -4 -4 -4 -4 -4 -4 -3 -2 -1 -1 --------- Run | Scr Mat Min Exi Min Mat Fac DSF Fac Fac Upp Upp War Pro Fac Ext Cet Arc Hub Res Res Acc Com Distress Signals 14 | . . . . . 1 . . . . . . . . . 2 2 . 3 . 4 . 2 Communications Jammed 258 | . . . . . . . . . . . . . . . 6 . . 197 . 1 11 43 Distress Signals 258 | . . . . . . . . . . . . . . . 6 . . 197 . 1 11 43 Times Spotted 218 | . 11 . . . 8 1 8 5 2 . . 13 . 5 25 14 8 29 11 6 30 42 Peak Tracking Total 14 | . 2 . . . 5 1 3 1 2 . . 14 . 2 4 5 2 6 5 2 6 8 Tactical Retreats 3 | . 1 . . . 1 . . . . . . . . . . . . 1 . . . . Traps | -11 -10 -10 -10 -9 -8 -7 -7 -6 -5 -5 -5 -5 -4 -4 -4 -4 -4 -4 -3 -2 -1 -1 ------- Run | Scr Mat Min Exi Min Mat Fac DSF Fac Fac Upp Upp War Pro Fac Ext Cet Arc Hub Res Res Acc Com Traps Triggered 3 | . 1 . . . . . . 1 . . . . . . . . . . . . . 1 Indirectly . | . . . . . . . . . . . . . . . . . . . . . . . Trap Hack Attempts . | . . . . . . . . . . . . . . . . . . . . . . . Triggered . | . . . . . . . . . . . . . . . . . . . . . . . Disarmed . | . . . . . . . . . . . . . . . . . . . . . . . Reprogrammed . | . . . . . . . . . . . . . . . . . . . . . . . Reused . | . . . . . . . . . . . . . . . . . . . . . . . Traps Extracted . | . . . . . . . . . . . . . . . . . . . . . . . Installed . | . . . . . . . . . . . . . . . . . . . . . . . Triggered 13 | . . . . . . . . . . . . 13 . . . . . . . . . . Machines | -11 -10 -10 -10 -9 -8 -7 -7 -6 -5 -5 -5 -5 -4 -4 -4 -4 -4 -4 -3 -2 -1 -1 ---------- Run | Scr Mat Min Exi Min Mat Fac DSF Fac Fac Upp Upp War Pro Fac Ext Cet Arc Hub Res Res Acc Com Machines Disabled 28 | . . . . . . . . 13 . . . . . . 1 3 4 6 . . . 1 Max in Single Turn 13 | . . . . . . . . 13 . . . . . . 1 . 1 2 . . . 1 Garrison Access 4 | . . . . . . . . . . . . . . . . . . . 1 3 . . Network Hub 1 | . . . . . . . . . . . . . . . . . . 1 . . . . Machines Sabotaged . | . . . . . . . . . . . . . . . . . . . . . . . Garrisons Compromised . | . . . . . . . . . . . . . . . . . . . . . . . Overloaded Fab Kills . | . . . . . . . . . . . . . . . . . . . . . . . Hacking | -11 -10 -10 -10 -9 -8 -7 -7 -6 -5 -5 -5 -5 -4 -4 -4 -4 -4 -4 -3 -2 -1 -1 --------- Run | Scr Mat Min Exi Min Mat Fac DSF Fac Fac Upp Upp War Pro Fac Ext Cet Arc Hub Res Res Acc Com Machines Accessed 67 | . 9 . 1 . 3 2 . 6 2 . . 2 . 3 17 1 . 4 5 2 7 3 Terminals 55 | . 7 . . . 2 2 . 5 2 . . . . 3 17 1 . 4 3 . 7 2 Fabricators 1 | . . . . . . . . 1 . . . . . . . . . . . . . . Repair Stations 2 | . . . . . . . . . . . . . . . . . . . 1 . . 1 Recycling Units 2 | . 2 . . . . . . . . . . . . . . . . . . . . . Scanalyzers . | . . . . . . . . . . . . . . . . . . . . . . . Garrison Access 4 | . . . . . 1 . . . . . . . . . . . . . 1 2 . . Total Hacks 170 | . 27 . 1 . 9 3 . 19 7 . . 5 . 11 33 1 . 12 15 4 16 7 Successful 85 | . 11 . 1 . 5 2 . 11 3 . . 5 . 7 19 1 . 5 4 2 8 1 Failed 85 | . 16 . . . 4 1 . 8 4 . . . . 4 14 . . 7 11 2 8 6 Catastrophic 6 | . 1 . . . . . . 1 . . . . . . . . . . 1 . . 3 Database Lockouts . | . . . . . . . . . . . . . . . . . . . . . . . Manual 77 | . 19 . 1 . 5 1 . 8 2 . . . . 9 11 . . 8 6 . 5 2 Terminals 147 | . 23 . . . 8 3 . 17 7 . . . . 11 33 1 . 12 10 . 16 6 Fabricators 2 | . . . . . . . . 2 . . . . . . . . . . . . . . Repair Stations 5 | . . . . . . . . . . . . . . . . . . . 4 . . 1 Recycling Units 4 | . 4 . . . . . . . . . . . . . . . . . . . . . Scanalyzers . | . . . . . . . . . . . . . . . . . . . . . . . Garrison Access 6 | . . . . . 1 . . . . . . . . . . . . . 1 4 . . Terminal Hacks 60 | . 9 . 1 . 3 1 . 8 2 . . 5 . 5 15 1 . 3 1 . 6 . Record 1 | . . . . . . . . . . . . . . . . . . . . . 1 . Part Schematic 1 | . . . . . 1 . . . . . . . . . . . . . . . . . Robot Analysis 8 | . 5 . . . 1 . . 1 . . . . . . . . . 1 . . . . Prototype ID Bank 7 | . 2 . . . . . . . . . . 4 . . . . . . 1 . . . Open Door 17 | . . . . . . . . . . . . 1 . 1 11 1 . . . . 3 . Open DSF 1 | . . . . . . 1 . . . . . . . . . . . . . . . . Level Access Points 2 | . . . . . . . . 1 . . . . . . . . . 1 . . . . Branch Access Points 4 | . . . . . . . . 1 1 . . . . 1 . . . . . . 1 . Terminal Index 4 | . 1 . . . . . . 1 . . . . . 1 1 . . . . . . . Alert Level 1 | . . . . . . . . 1 . . . . . . . . . . . . . . Unreport Threat 5 | . . . . . 1 . . . 1 . . . . 2 1 . . . . . . . Locate Traps 4 | . 1 . . . . . . 1 . . . . . . 2 . . . . . . . Recall Extermination 1 | . . . . . . . . 1 . . . . . . . . . . . . . . Registered Components 3 | . . . . . . . . 1 . . . . . . . . . 1 . . 1 . EX-Prototype ID Bank 1 | . . . 1 . . . . . . . . . . . . . . . . . . . Fabricator Hacks 1 | . . . . . . . . 1 . . . . . . . . . . . . . . Network Status 1 | . . . . . . . . 1 . . . . . . . . . . . . . . Repair Station Hacks 1 | . . . . . . . . . . . . . . . . . . . 1 . . . Scan Component 1 | . . . . . . . . . . . . . . . . . . . 1 . . . Recycling Unit Hacks . | . . . . . . . . . . . . . . . . . . . . . . . Scanalyzer . | . . . . . . . . . . . . . . . . . . . . . . . Garrison Access Hacks 3 | . . . . . . . . . . . . . . . . . . . 1 2 . . Seal Access 3 | . . . . . . . . . . . . . . . . . . . 1 2 . . Unauthorized Hacks 20 | . 2 . . . 2 1 . 2 1 . . . . 2 4 . . 2 1 . 2 1 Terminals 19 | . 1 . . . 2 1 . 2 1 . . . . 2 4 . . 2 1 . 2 1 Track 1 | . . . . . . . . . . . . . . . . . . 1 . . . . Assimilate 3 | . . . . . 2 . . . . . . . . . 1 . . . . . . . Botnet 14 | . 1 . . . . 1 . 2 1 . . . . 2 2 . . 1 1 . 2 1 Operators 1 | . . . . . . . . . . . . . . . 1 . . . . . . . Fabricators . | . . . . . . . . . . . . . . . . . . . . . . . Repair Stations . | . . . . . . . . . . . . . . . . . . . . . . . Recycling Units 1 | . 1 . . . . . . . . . . . . . . . . . . . . . Recyclers 1 | . 1 . . . . . . . . . . . . . . . . . . . . . Scanalyzers . | . . . . . . . . . . . . . . . . . . . . . . . Garrison Access . | . . . . . . . . . . . . . . . . . . . . . . . Data Cores Recovered 1 | . . . . . . . . . . . . . . 1 . . . . . . . . Used 1 | . . . . . . . . . . . . . . 1 . . . . . . . . Hacking Detections 49 | . 8 . . . 3 1 . 6 2 . . . . 3 9 1 . 4 4 1 4 3 Full Trace Events 2 | . . . . . . . . 1 . . . . . . . . . . . . . 1 Feedback Events . | . . . . . . . . . . . . . . . . . . . . . . . Feedback Blocked . | . . . . . . . . . . . . . . . . . . . . . . . Robot Schematics Acquired . | . . . . . . . . . . . . . . . . . . . . . . . Robots Built . | . . . . . . . . . . . . . . . . . . . . . . . Authchips . | . . . . . . . . . . . . . . . . . . . . . . . Time . | . . . . . . . . . . . . . . . . . . . . . . . Total Robot Build Rating . | . . . . . . . . . . . . . . . . . . . . . . . Part Schematics Acquired 1 | . . . . . 1 . . . . . . . . . . . . . . . . . Parts Built . | . . . . . . . . . . . . . . . . . . . . . . . Authchips . | . . . . . . . . . . . . . . . . . . . . . . . Time . | . . . . . . . . . . . . . . . . . . . . . . . Total Part Build Rating . | . . . . . . . . . . . . . . . . . . . . . . . Parts Repaired . | . . . . . . . . . . . . . . . . . . . . . . . Time . | . . . . . . . . . . . . . . . . . . . . . . . Parts Recycled . | . . . . . . . . . . . . . . . . . . . . . . . Recycled Matter . | . . . . . . . . . . . . . . . . . . . . . . . Retrieved Matter . | . . . . . . . . . . . . . . . . . . . . . . . Retrieved Components . | . . . . . . . . . . . . . . . . . . . . . . . Parts Scanalyzed . | . . . . . . . . . . . . . . . . . . . . . . . Part Schematics Acquired . | . . . . . . . . . . . . . . . . . . . . . . . Parts Damaged . | . . . . . . . . . . . . . . . . . . . . . . . Bothacking | -11 -10 -10 -10 -9 -8 -7 -7 -6 -5 -5 -5 -5 -4 -4 -4 -4 -4 -4 -3 -2 -1 -1 ------------ Run | Scr Mat Min Exi Min Mat Fac DSF Fac Fac Upp Upp War Pro Fac Ext Cet Arc Hub Res Res Acc Com Used RIF Installer . | . . . . . . . . . . . . . . . . . . . . . . . Robots Hacked . | . . . . . . . . . . . . . . . . . . . . . . . Non-combat . | . . . . . . . . . . . . . . . . . . . . . . . Combat . | . . . . . . . . . . . . . . . . . . . . . . . Robot Hacks Applied . | . . . . . . . . . . . . . . . . . . . . . . . Relay Couplers Released 5 | . . . . . . . . . . . . . . . . . . . . 2 3 . Machine Destruction 2 | . . . . . . . . . . . . . . . . . . . . 2 . . Programmers 3 | . . . . . . . . . . . . . . . . . . . . . 3 . Fabnet Peak Effective % . | . . . . . . . . . . . . . . . . . . . . . . . Robots Rewired 7 | . . . . . . . . . . . . . . . 7 . . . . . . . Allies Hacked 1 | . . . . . . . . . . . . . . . . . . 1 . . . . Hacks Repelled . | . . . . . . . . . . . . . . . . . . . . . . . Allies | -11 -10 -10 -10 -9 -8 -7 -7 -6 -5 -5 -5 -5 -4 -4 -4 -4 -4 -4 -3 -2 -1 -1 -------- Run | Scr Mat Min Exi Min Mat Fac DSF Fac Fac Upp Upp War Pro Fac Ext Cet Arc Hub Res Res Acc Com Total Allies 20 | . . . . . 1 . . . . . . . . . 19 . . . . . . . Largest Group 17 | . . . . . 1 1 . . . . . . . . 17 17 11 7 . . . . Highest-Rated Group 832 | . . . . . 10 10 . . . . . . . . 832 832 568 277 . . . . Highest-Rated Ally 159 | . . . . . 10 10 . . . . . . . . 159 159 152 51 . . . . Total Orders 6 | . . . . . . . . . . . . . . . 4 2 . . . . . . STAY 4 | . . . . . . . . . . . . . . . 3 1 . . . . . . FOLLOW 2 | . . . . . . . . . . . . . . . 1 1 . . . . . . Ally Attacks 215 | . . . . . . . . . . . . . . . 56 84 22 53 . . . . Total Damage 6146 | . . . . . . . . . . . . . . . 1590 2419 650 1487 . . . . Kills 40 | . . . . . . . . . . . . . . . 7 18 2 13 . . . . Allies Corrupted . | . . . . . . . . . . . . . . . . . . . . . . . Allies Melted 1 | . . . . . . . . . . . . . . . . . . . . 1 . . Intel | -11 -10 -10 -10 -9 -8 -7 -7 -6 -5 -5 -5 -5 -4 -4 -4 -4 -4 -4 -3 -2 -1 -1 ------- Run | Scr Mat Min Exi Min Mat Fac DSF Fac Fac Upp Upp War Pro Fac Ext Cet Arc Hub Res Res Acc Com Robot Analysis Total 8 | . 5 . . . 1 . . 1 . . . . . . . . . 1 . . . . Derelict Logs Recovered 6 | . . 1 . 1 . . . . . 1 2 . 1 . . . . . . . . . Drone Launches . | . . . . . . . . . . . . . . . . . . . . . . . Drone Recoveries . | . . . . . . . . . . . . . . . . . . . . . . . Exploration | -11 -10 -10 -10 -9 -8 -7 -7 -6 -5 -5 -5 -5 -4 -4 -4 -4 -4 -4 -3 -2 -1 -1 ------------- Run | Scr Mat Min Exi Min Mat Fac DSF Fac Fac Upp Upp War Pro Fac Ext Cet Arc Hub Res Res Acc Com Turns Passed 13017 | 93 750 112 462 118 574 442 262 1045 337 220 421 1372 229 302 1206 275 131 857 717 1201 925 966 Spaces Moved 6924 | 54 415 100 272 50 288 249 91 552 175 132 253 828 143 169 585 153 66 375 385 698 508 383 Core 32 | 13 . . . . . . . . . . . . . . . . . . . . . 19 Treads 6181 | . . . 117 50 288 249 91 552 175 132 253 828 143 169 585 153 66 375 385 698 508 364 Legs . | . . . . . . . . . . . . . . . . . . . . . . . Wheels 711 | 41 415 100 155 . . . . . . . . . . . . . . . . . . . Hover . | . . . . . . . . . . . . . . . . . . . . . . . Flight . | . . . . . . . . . . . . . . . . . . . . . . . Fastest Speed 50 | 50 80 110 110 240 160 160 160 165 165 165 165 160 160 160 160 160 160 160 160 152 145 50 Average Speed 155 | 72 115 110 165 240 160 160 165 165 165 165 165 160 160 160 160 160 160 164 160 155 146 144 Slowest Speed 240 | 80 155 110 240 240 160 160 240 165 165 165 165 165 160 160 160 160 160 240 160 165 152 160 Overloaded Moves . | . . . . . . . . . . . . . . . . . . . . . . . Propulsion Burnouts . | . . . . . . . . . . . . . . . . . . . . . . . Robots Hopped . | . . . . . . . . . . . . . . . . . . . . . . . Cave-ins Triggered 1 | . . . . . . 1 . . . . . . . . . . . . . . . . Exploration Rate (%) 42 | 3 85 52 65 23 36 8 68 27 7 43 55 91 45 9 81 79 82 47 13 29 18 21 Regions Visited 22 Branch Regions 12 Pre-discovered Areas 1 | . . . . 1 . . . . . . . . . . . . . . . . . . Known Exits Taken 8 | . . . . . . 1 . 1 1 . . . . 1 . . . 1 1 1 1 . Unknown Exits Taken 13 | 1 1 1 1 1 1 . . . . 1 1 1 1 . 1 1 1 . . . . . Scrap Searched 6 | . . 1 . . . . . . . 1 2 . 2 . . . . . . . . . Spaces Dug 87 | . 5 . . . . 7 . 15 1 . . 4 . 3 3 . . 9 11 12 9 8 Terrain Destroyed 391 | . 5 . . . . 7 . 56 1 . . 4 . 3 13 . 3 222 11 12 10 44 Melee 9 | . . . . . . 7 . 2 . . . . . . . . . . . . . . Projectile 120 | . 5 . . . . . . 14 1 . . 4 . 3 13 . 3 41 11 12 10 3 AOE 257 | . . . . . . . . 40 . . . . . . . . . 181 . . . 36 Terrain Rammed . | . . . . . . . . . . . . . . . . . . . . . . . Walls Destroyed . | . . . . . . . . . . . . . . . . . . . . . . . Machines Disabled . | . . . . . . . . . . . . . . . . . . . . . . . Actions | -11 -10 -10 -10 -9 -8 -7 -7 -6 -5 -5 -5 -5 -4 -4 -4 -4 -4 -4 -3 -2 -1 -1 --------- Run | Scr Mat Min Exi Min Mat Fac DSF Fac Fac Upp Upp War Pro Fac Ext Cet Arc Hub Res Res Acc Com Total 8441 | 84 567 103 287 49 358 279 165 643 218 133 257 860 143 199 800 180 87 528 466 802 624 609 Wait 198 | . 1 . . . 4 17 9 9 4 . 1 . . . 39 9 1 30 1 11 15 47 Move 6902 | 53 414 99 271 49 287 248 90 551 174 131 252 827 142 168 584 152 65 375 384 697 507 382 Hop . | . . . . . . . . . . . . . . . . . . . . . . . Pick Up 149 | 10 32 2 3 . 10 2 10 9 9 . 1 1 . 5 4 1 4 9 12 13 7 5 Fast Attach 100 | 4 5 . 1 . 3 1 5 9 3 . 1 6 . 4 3 3 . 6 9 6 8 23 Attach 87 | 3 6 . 3 . 5 2 8 5 6 . . 2 . 2 1 1 . 5 9 8 4 17 Detach 41 | . 3 . 1 . 2 . 4 3 5 . . 3 . 2 . . . 2 5 3 3 5 Swap 235 | 1 24 . 1 . 15 . 5 6 6 2 . 9 1 3 52 2 3 35 11 17 24 18 Drop 179 | 2 24 2 7 . 11 . 14 16 6 . 2 9 . 9 7 5 4 5 12 25 10 9 Fire 459 | 11 58 . . . 19 . 20 27 5 . . 3 . 5 57 7 10 57 16 21 40 103 Melee 11 | . . . . . . 9 . 2 . . . . . . . . . . . . . . Ram . | . . . . . . . . . . . . . . . . . . . . . . . Kick . | . . . . . . . . . . . . . . . . . . . . . . . Crush 29 | . . . . . 2 . . 6 . . . . . 1 2 . . 4 7 1 6 . Escape Stasis . | . . . . . . . . . . . . . . . . . . . . . . . Rewire 51 | . . . . . . . . . . . . . . . 51 . . . . . . . Trap . | . . . . . . . . . . . . . . . . . . . . . . . Miscellaneous . | . . . . . . . . . . . . . . . . . . . . . . . Route ------- -11/Scrapyard -10/Materials (discovered 4 exits: *Mat x3 / [*Min]) -10/Mines (discovered 2 exits: Mat / *Exi) -10/Exiles (discovered 2 exits: [*Min x2]) -9/Mines -8/Materials (discovered 2 exits: *Fac / *Sto) -7/Factory (discovered 2 exits: *Fac / DSF) -7/DSF -6/Factory (discovered 6 exits: *Fac x4 / Low x2) -5/Factory (discovered 2 exits: *Upp x2) -5/Upper Caves -5/Upper Caves (discovered 2 exits: Fac / *War) -5/Warlord -4/Proximity Caves -4/Factory (discovered 4 exits: Upp x2 / *Ext x2) -4/Extension (discovered 3 exits: *Res x2 / *Cet) -4/Cetus (discovered 2 exits: *Res / [*Arc]) -4/Archives (discovered 2 exits: *Res / *Hub) -4/Hub_04(d) (discovered 4 exits: *Res x4) -3/Research (discovered 3 exits: *Res / Arm / [*Tes]) -2/Research -1/Access -1/Command To Epsilon Eridani History --------- Turn | Location | Event 14 | -11/Scrapyard | Discovered new exit (range 14) 94 | -11/Scrapyard | Entered Materials 231 | -10/Materials | Discovered new exit (range 9) 323 | -10/Materials | Build established: Mutant 338 | -10/Materials | Discovered new exit (range 16) 471 | -10/Materials | Discovered new exit (range 6) 668 | -10/Materials | Discovered new exit (range 5) 844 | -10/Materials | Entered Mines 871 | -10/Mines | A weapon hastily lodged in a ceiling crevice suddenly fell to the ground 949 | -10/Mines | Identified exit to Materials 952 | -10/Mines | Deemed a non-threat by the Exiles lab entrance 952 | -10/Mines | Discovered new exit (range 5) 956 | -10/Mines | Entered Exiles 971 | -10/Exiles | Discovered new exit (range 15) 986 | -10/Exiles | Met 8R-AWN 1003 | -10/Exiles | Met EX-HEX 1074 | -10/Exiles | Met EX-BIN 1086 | -10/Exiles | Aligned with FarCom system 1087 | -10/Exiles | Given EX-Vault access code 1113 | -10/Exiles | Opened EX-Vault 1127 | -10/Exiles | Found XL Autogun Array 1191 | -10/Exiles | Warned to stay clear of 0b10 Research branches 1261 | -10/Exiles | Met EX-DEC 1399 | -10/Exiles | Discovered new exit (range 10) 1418 | -10/Exiles | Left Exiles lab with XL Autogun Array 1418 | -10/Exiles | Entered Mines 1476 | -9/Mines | Learned location of Storage (-8) 1524 | -9/Mines | Discovered new exit (range 6) 1536 | -9/Mines | Entered Materials 1536 | -8/Materials | Evolved 4 slots: Propulsion x1, Utility x2, Weapon x1 1652 | -8/Materials | Discovered new exit (range 9) 1698 | -8/Materials | Identified exit to Storage 1792 | -8/Materials | Build established: Skirmisher 2002 | -8/Materials | Discovered new exit (range 6) 2110 | -8/Materials | Entered Factory 2110 | -7/Factory | Accompanied by 1 ally 2110 | -7/Factory | Evolved 2 slots: Utility x1, Weapon x1 2195 | -7/Factory | Discovered new exit (range 19) 2276 | -7/Factory | Crushed by falling debris 2552 | -7/Factory | Identified exit to DSF 2552 | -7/Factory | Entered DSF 2614 | -7/DSF | Additional patrols routed to DSF 2679 | -7/DSF | Discovered new exit (range 20) 2745 | -7/DSF | Sterilization system engaged 2765 | -7/DSF | Ambient heat levels rising (+10) 2780 | -7/DSF | Ambient heat levels rising (+10) 2795 | -7/DSF | Ambient heat levels rising (+10) 2810 | -7/DSF | Ambient heat levels rising (+10) 2814 | -7/DSF | Entered Factory 2814 | -6/Factory | Evolved 2 slots: Propulsion x1, Utility x1 2913 | -6/Factory | Garrison activated, responded to threat 3095 | -6/Factory | Identified exit to Lower Caves 3705 | -6/Factory | Identified exit to Factory 3859 | -6/Factory | Entered another Factory area 3859 | -5/Factory | Evolved 2 slots: Power x1, Utility x1 4014 | -5/Factory | Build established: Mutant 4035 | -5/Factory | Identified exit to Upper Caves 4196 | -5/Factory | Entered Upper Caves 4248 | -5/Upper Caves | Learned Factory stockpile data 4288 | -5/Upper Caves | Encountered a Warlord checkpoint 4414 | -5/Upper Caves | Discovered new exit (range 2) 4416 | -5/Upper Caves | Entered another Upper Caves area 4427 | -5/Upper Caves | Discovered new exit (range 14) 4436 | -5/Upper Caves | Learned Factory emergency access door positions 4572 | -5/Upper Caves | Build established: Skirmisher 4699 | -5/Upper Caves | Spotted B-75 Beast 4794 | -5/Upper Caves | Discovered new exit (range 12) 4837 | -5/Upper Caves | Entered Warlord 4880 | -5/Warlord | Discovered new exit (range 12) 5659 | -5/Warlord | Warlord's base attacked by MAIN.C 5791 | -5/Warlord | Met Warlord 6009 | -5/Warlord | Warlord forces counterattacked 6038 | -5/Warlord | Found Prototype Energy Gun 6038 | -5/Warlord | Identified Vortex Rail 6042 | -5/Warlord | Found Vortex Rail 6160 | -5/Warlord | Spotted Striker 6160 | -5/Warlord | Spotted B-75 Beast 6160 | -5/Warlord | Spotted B-86 Titan 6209 | -5/Warlord | Entered Proximity Caves 6365 | -4/Proximity Caves | Learned location of 1 exit from Research 6424 | -4/Proximity Caves | Discovered new exit (range 10) 6438 | -4/Proximity Caves | Entered Factory 6438 | -4/Factory | Evolved 2 slots: Utility x1, Weapon x1 6463 | -4/Factory | Build established: Mutant 6613 | -4/Factory | Identified exit to Upper Caves 6613 | -4/Factory | Identified exit to Extension 6695 | -4/Factory | Found Prototype Processor 6695 | -4/Factory | Identified Exp. Signal Interpreter 6740 | -4/Factory | Entered Extension 7314 | -4/Extension | Rescued A7 7339 | -4/Extension | Rescued a captive Derelict 7342 | -4/Extension | Rescued a captive Derelict 7382 | -4/Extension | Rescued a captive Derelict 7550 | -4/Extension | Spotted B-86 Titan 7570 | -4/Extension | Destroyed B-86 Titan 7577 | -4/Extension | Spotted B-86 Titan 7587 | -4/Extension | Destroyed B-86 Titan 7611 | -4/Extension | Build established: Skirmisher 7620 | -4/Extension | Discovered new exit (range 15) 7690 | -4/Extension | Rescued a captive Derelict 7691 | -4/Extension | Rescued a captive Derelict 7738 | -4/Extension | Rescued a captive Derelict 7739 | -4/Extension | Rescued a captive Derelict 7780 | -4/Extension | Rescued a captive Derelict 7845 | -4/Extension | Rescued a captive Derelict 7849 | -4/Extension | Rescued a captive Derelict 7857 | -4/Extension | Rescued a captive Derelict 7877 | -4/Extension | Rescued a captive Derelict 7886 | -4/Extension | Rescued a captive Derelict 7918 | -4/Extension | Discovered new exit (range 10) 7919 | -4/Extension | Discovered new exit (range 6) 7946 | -4/Extension | Entered Cetus 7946 | -4/Cetus | Accompanied by 17 allies (A7) 7951 | -4/Cetus | Acquired a Cetus Manufacturing Module code from A7 7961 | -4/Cetus | Spotted Cetus Guard 7961 | -4/Cetus | Spotted Cetus Guard 7961 | -4/Cetus | Spotted Cetus Guard 7963 | -4/Cetus | Spotted Cetus Guard 7979 | -4/Cetus | Allies destroyed Cetus Guard 7980 | -4/Cetus | Allies destroyed Cetus Guard 7982 | -4/Cetus | Allies destroyed Cetus Guard 7984 | -4/Cetus | Allies destroyed Cetus Guard 8029 | -4/Cetus | Cetus Manufacturing Module disabled 8074 | -4/Cetus | Discovered new exit (range 22) 8099 | -4/Cetus | Build established: Commander-Skirmisher 8104 | -4/Cetus | Spotted Cetus Guard 8106 | -4/Cetus | Spotted Cetus Guard 8108 | -4/Cetus | Spotted Cetus Guard 8109 | -4/Cetus | Destroyed Cetus Guard 8114 | -4/Cetus | Spotted Cetus Guard 8115 | -4/Cetus | Discovered new exit (range 21) 8121 | -4/Cetus | Allies destroyed Cetus Guard 8123 | -4/Cetus | Destroyed Cetus Guard 8126 | -4/Cetus | Allies destroyed Cetus Guard 8135 | -4/Cetus | Met Revision 17 8221 | -4/Cetus | Entered Archives 8221 | -4/Archives | Accompanied by 11 allies (A7) 8263 | -4/Archives | Discovered new exit (range 14) 8280 | -4/Archives | Discovered new exit (range 14) 8352 | -4/Archives | Entered Hub_04(d) 8352 | -4/Hub_04(d) | Accompanied by 7 allies 8444 | -4/Hub_04(d) | Identified exit to Research 8719 | -4/Hub_04(d) | Build established: Scavenger-Skirmisher 8738 | -4/Hub_04(d) | Spotted B-86 Titan 8755 | -4/Hub_04(d) | Destroyed B-86 Titan 8770 | -4/Hub_04(d) | Network Hub disabled 8942 | -4/Hub_04(d) | Spotted Lightning 8943 | -4/Hub_04(d) | Spotted Lightning 8952 | -4/Hub_04(d) | Spotted Lightning 9010 | -4/Hub_04(d) | Destroyed Lightning 9020 | -4/Hub_04(d) | Destroyed Lightning 9040 | -4/Hub_04(d) | System corruption reached 10% 9044 | -4/Hub_04(d) | Destroyed Lightning 9174 | -4/Hub_04(d) | Found Prototype Launcher 9174 | -4/Hub_04(d) | Identified Com. Tesla Bomb Launcher 9209 | -4/Hub_04(d) | Entered Research 9209 | -3/Research | Evolved 2 slots: Utility x2 9210 | -3/Research | Identified exit to Armory 9211 | -3/Research | Identified exit to Research 9383 | -3/Research | Found Prototype Launcher 9383 | -3/Research | Identified Hellfire Missile Launcher 9459 | -3/Research | First assault squad dispatched 9524 | -3/Research | Discovered new exit (range 15) 9573 | -3/Research | Found Prototype Launcher 9573 | -3/Research | Identified Tactical Quantum Warhead 9636 | -3/Research | Build established: Scavenger-Mutant 9926 | -3/Research | Entered another Research area 9926 | -2/Research | Warlord forces began assault on 0b10 9926 | -2/Research | Evolved 2 slots: Utility x2 10036 | -2/Research | Research machine network offline 10119 | -2/Research | Found Prototype Processor 10119 | -2/Research | Identified Spectral Analyzer 10254 | -2/Research | Spotted Striker 10400 | -2/Research | Spotted Executioner 10402 | -2/Research | Spotted Striker 10408 | -2/Research | Spotted Executioner 10564 | -2/Research | Build established: Mutant 10653 | -2/Research | Found Exp. Signal Interpreter 10722 | -2/Research | Met up with Warlord 11022 | -2/Research | Discovered new exit (range 10) 11072 | -2/Research | Identified exit to Access 11127 | -2/Research | Entered Access 11127 | -1/Access | Evolved 2 slots: Utility x2 11150 | -1/Access | Garrison activated, responded to threat 11425 | -1/Access | Identified exit to Command 11549 | -1/Access | Build established: Scavenger-Mutant 11628 | -1/Access | Destroyed 7 combat bots 11851 | -1/Access | Found Antimissile System 11974 | -1/Access | Destroyed 7 combat bots 12052 | -1/Access | Entered Command 12358 | -1/Command | Build established: Scavenger-Gunner 12455 | -1/Command | Spotted B-99 Colossus 12539 | -1/Command | Destroyed B-99 Colossus 12549 | -1/Command | Lost 5 parts (1p2u2w) 12560 | -1/Command | Destroyed 10 combat bots 12578 | -1/Command | Found Prototype Ballistic Gun 12578 | -1/Command | Identified Multirail 12687 | -1/Command | Spotted Striker 12706 | -1/Command | Destroyed Striker 12716 | -1/Command | Spotted Alpha 7 12748 | -1/Command | Destroyed Alpha 7 12757 | -1/Command | Found Prototype Processor 12757 | -1/Command | Identified Exp. Target Analyzer 12810 | -1/Command | Spotted Alpha 7 12810 | -1/Command | Spotted Striker 12810 | -1/Command | Spotted Executioner 12810 | -1/Command | Spotted Executioner 12819 | -1/Command | Spotted B-99 Colossus 12824 | -1/Command | Destroyed Striker 12824 | -1/Command | Spotted Executioner 12837 | -1/Command | System corruption reached 10% 12865 | -1/Command | Destroyed Alpha 7 12867 | -1/Command | Lost 5 parts (3u2w) 12867 | -1/Command | Destroyed Executioner 12883 | -1/Command | Spotted Executioner 12889 | -1/Command | Found Prototype Processor 12889 | -1/Command | Identified Exp. Core Analyzer 12897 | -1/Command | Spotted B-99 Colossus 12902 | -1/Command | Destroyed Executioner 12911 | -1/Command | Destroyed Executioner 12938 | -1/Command | Destroyed B-99 Colossus 12976 | -1/Command | Destroyed B-99 Colossus 12997 | -1/Command | Lost 15 parts (2p2n6u5w) 12998 | -1/Command | Discovered new exit (range 18) 13003 | -1/Command | Released all parts (15) 13004 | -1/Command | Found Exp. Core Analyzer 13010 | -1/Command | Found Prototype Processor 13010 | -1/Command | Identified Exp. Targeting Computer 13018 | *** | Escaped! Last Messages --------------- 13003_ Released Hvy. Machine Gun. 13003_ Released Imp. Heavy Treads. 13003_ Released Exp. Core Analyzer. 13003_ Released Multirail. 13003_ Released Exp. Cooling System. 13003_ Released Imp. Targeting Computer. 13003_ Released Adv. Target Analyzer. 13003_ Released Spectral Analyzer. 13003_ Released Hcp. Storage Unit. 13003_ Released Exp. Target Analyzer. 13003_ Released Exp. Optical Array. 13003_ Released Exp. Biometal Heavy Treads. 13003_ Released Hellfire Missile Launcher. 13004_ Acquired Exp. Core Analyzer. 13006_ Acquired Imp. Armor Integrity Analyzer. 13010_ Acquired Prototype Processor. 13010_ Identified Exp. Targeting Computer. 13012_ Acquired 74 matter. 13015_ The Access Shell folds into the floor. 13018_ T>8VIM1A4MW49NYJ2E7M=RZ>ER|V/X7 MW51I Map ----- +----------------------------------------------------+ | ?????????????????# " ! "" #???????????? | | ?????????????????# " #???????????? | | ???????????????### " #???????????? | | ???????????????+ """########???????????? | | ???????????????# = #?????????????????? | | ????????????? + ![!* ##?????????????????? | | ???????????" #######=!!! #??????????????????? | | ????????? ???????#]]=%% #??????????????????? | | ???????? ?????????#![!!!# ##??????????????????? | | ????????? ???????????#!!]%%] #???????????????????? | | ????????????????????## ![[ ##??????????????????? | | ????????????????????#%[==] % #??????????????????? | | ????????????????????##! #??????????????????? | | ????????????????????#[!= #??????????????????? | | ????????????????????##^ #??????????????????? | | ????????????????????# ^ #??????????????????? | | ????????????????????## ^ #??????????????????? | | ????????????????????# ^ #??????????????????? | | ??????????????????#### ###?????????????????? | | ??????????????????# #?????????????????? | | ??????????????????# #?????????????????? | | ??????????????????# #?????????????????? | | ??????????????????# ^ ^ #?????????????????? | | ??????????????????# ^ #?????????????????? | | ??????????????????# "" #?????????????????? | | ??????????????????# "@ ^ #?????????????????? | | ??????????????????# #?????????????????? | | ??????????????????# #?????????????????? | | ??????????????????# ^ #?????????????????? | | ??????????????????# #?????????????????? | | ??????????????????# #?????????????????? | | ??????????????????##############?????????????????? | | ?????????????????????????????????????????????????? | | ?????????????????????????????????????????????????? | | ?????????????????????????????????????????????????? | | ?????????????????????????????????????????????????? | | ?????????????????????????????????????????????????? | | ?????????????????????????????????????????????????? | | ?????????????????????????????????????????????????? | | ?????????????????????????????????????????????????? | | ?????????????????????????????????????????????????? | | ?????????????????????????????????????????????????? | | ?????????????????????????????????????????????????? | | ?????????????????????????????????????????????????? | | ?????????????????????????????????????????????????? | | ?????????????????????????????????????????????????? | | ?????????????????????????????????????????????????? | | ?????????????????????????????????????????????????? | | ?????????????????????????????????????????????????? | | ?????????????????????????????????????????????????? | +----------------------------------------------------+ Best States ------------- Heat Dissipation 116 Energy Generation 45 Energy Capacity 1450 Matter Stores 800 Matter Capacity 800 Sight Range 24 Terrain Scan Range 20 Terrain Scan Density 210 Jamming Range 16 Corruption Containment 12 Armor Coverage 150 Resistance: KI 30 Power Shielding 33 Utility Shielding 66 Weapon Shielding 66 Weapon Cycling 30 Evasion (%) 44 Targeting Accuracy 16 Target Analysis 14 Core Analysis 8 Armor Integrity Analysis 40 Recoil Reduction 4 Kinecelleration 30 Offensive Hacking 20 Defensive Hacking 24 Authchip Count 1 Item Schematics ----------------- Imp. Utility Shielding | -8/Materials | Hacked Robot Schematics ------------------ None Fabricated ------------ Nothing Alien Tech Used ----------------- None Achievements -------------- None Challenges ------------ None Game ------ Seed EfficiencyRemoteModule Manual? 0 Play Time 03:22:46 Cumulative 642.0 hours Start 2022.05.20 @ 19:47:37 End 2022.05.21 @ 00:58:34 Sessions 7 Manual Loads 0 Difficulty Rogue Special Mode None Game No. 327 Rogue 200 Adventurer 125 Explorer 2 Win Type 0 Total 67 Types 58/3/3/1/1/0/0/0/1 Lore% 75 Gallery% 86 Achievement% 71 Wizard Run 0 Options --------- ASCII 0 Keyboard 1 Movement Numpad Keybinds 0 Fullscreen 1 Font 36/TerminusFine Map View 76x50 Tactical HUD 1 Map Filters NONE Filters NONE Steam 1 RUN: 719765fd-cca3-4fea-9ed1-5904f8952887